[Event "Titled Tuesday Blitz May 03 Early 2022"]
[White "Lashkin, Jegor"]
[Black "Lehtosaari, Mauri"]
[WhiteFideId "13907808"]
[BlackFideId "501999"]
[WhiteElo "2368"]
[BlackElo "2538"]
[Result "1/2-1/2"]
[Round "04"]
[TimeControl "180+1"]
[Date "2022.05.03"]
[WhiteClock "0:00:04"]
[BlackClock "0:00:22"]

1. e4 {[%clk 0:03:00]}  d5 {[%clk 0:02:58]} 2. exd5 {[%clk 0:03:00]}  Qxd5 {[%clk 0:02:59]} 3. Nc3 {[%clk 0:03:00]}  Qe5+ {[%clk 0:02:57]} 4. Be2 {[%clk 0:02:57]}  c6 {[%clk 0:02:57]} 5. Nf3 {[%clk 0:02:57]}  Qc7 {[%clk 0:02:57]} 6. O-O {[%clk 0:02:57]}  Bf5 {[%clk 0:02:56]} 7. d4 {[%clk 0:02:55]}  e6 {[%clk 0:02:57]} 8. Nh4 {[%clk 0:02:53]}  Bg6 {[%clk 0:02:56]} 9. Nxg6 {[%clk 0:02:52]}  hxg6 {[%clk 0:02:56]} 10. g3 {[%clk 0:02:53]}  Nf6 {[%clk 0:02:48]} 11. Bf3 {[%clk 0:02:52]}  Nbd7 {[%clk 0:02:45]} 12. Bf4 {[%clk 0:02:46]}  Bd6 {[%clk 0:02:45]} 13. Bxd6 {[%clk 0:02:43]}  Qxd6 {[%clk 0:02:45]} 14. Ne4 {[%clk 0:02:38]}  Nxe4 {[%clk 0:02:42]} 15. Bxe4 {[%clk 0:02:39]}  O-O {[%clk 0:02:21]} 16. c3 {[%clk 0:02:37]}  Rad8 {[%clk 0:02:19]} 17. Qe2 {[%clk 0:02:35]}  b6 {[%clk 0:02:07]} 18. Rad1 {[%clk 0:02:34]}  Nf6 {[%clk 0:02:05]} 19. Bf3 {[%clk 0:02:33]}  c5 {[%clk 0:02:05]} 20. Rd2 {[%clk 0:02:30]}  cxd4 {[%clk 0:02:01]} 21. Rxd4 {[%clk 0:02:31]}  Qc5 {[%clk 0:01:58]} 22. Rfd1 {[%clk 0:02:31]}  Rxd4 {[%clk 0:01:58]} 23. Rxd4 {[%clk 0:02:32]}  Re8 {[%clk 0:01:51]} 24. Qc4 {[%clk 0:02:26]}  Qf5 {[%clk 0:01:45]} 25. Qd3 {[%clk 0:02:20]}  Qxd3 {[%clk 0:01:32]} 26. Rxd3 {[%clk 0:02:21]}  Kf8 {[%clk 0:01:33]} 27. Kf1 {[%clk 0:02:04]}  Ke7 {[%clk 0:01:32]} 28. Rd4 {[%clk 0:02:03]}  Rc8 {[%clk 0:01:30]} 29. h4 {[%clk 0:02:03]}  Rc7 {[%clk 0:01:26]} 30. Ke2 {[%clk 0:02:00]}  Nd7 {[%clk 0:01:26]} 31. Be4 {[%clk 0:01:56]}  f5 {[%clk 0:01:14]} 32. Bc2 {[%clk 0:01:56]}  Nc5 {[%clk 0:01:12]} 33. Ke3 {[%clk 0:01:49]}  e5 {[%clk 0:01:12]} 34. Rd5 {[%clk 0:01:48]}  Ke6 {[%clk 0:01:08]} 35. Rd8 {[%clk 0:01:48]}  Rd7 {[%clk 0:01:03]} 36. Re8+ {[%clk 0:01:40]}  Re7 {[%clk 0:01:00]} 37. Rg8 {[%clk 0:01:35]}  Kf7 {[%clk 0:00:59]} 38. Ra8 {[%clk 0:01:34]}  Kf6 {[%clk 0:00:53]} 39. Rf8+ {[%clk 0:01:30]}  Rf7 {[%clk 0:00:47]} 40. Rd8 {[%clk 0:01:29]}  Rc7 {[%clk 0:00:46]} 41. Rd6+ {[%clk 0:01:24]}  Kf7 {[%clk 0:00:44]} 42. h5 {[%clk 0:01:24]}  gxh5 {[%clk 0:00:38]} 43. Bxf5 {[%clk 0:01:24]}  Ke7 {[%clk 0:00:32]} 44. Rg6 {[%clk 0:01:02]}  Kf7 {[%clk 0:00:33]} 45. Rd6 {[%clk 0:00:53]}  Ke7 {[%clk 0:00:32]} 46. Rd5 {[%clk 0:00:51]}  Kf6 {[%clk 0:00:31]} 47. Bc2 {[%clk 0:00:52]}  Ke6 {[%clk 0:00:30]} 48. Rd8 {[%clk 0:00:51]}  Ke7 {[%clk 0:00:30]} 49. Rh8 {[%clk 0:00:51]}  g6 {[%clk 0:00:28]} 50. Rh7+ {[%clk 0:00:47]}  Kd6 {[%clk 0:00:28]} 51. Rxc7 {[%clk 0:00:48]}  Kxc7 {[%clk 0:00:29]} 52. Bxg6 {[%clk 0:00:48]}  Na4 {[%clk 0:00:30]} 53. Bxh5 {[%clk 0:00:47]}  Nxb2 {[%clk 0:00:29]} 54. Be2 {[%clk 0:00:46]}  Na4 {[%clk 0:00:29]} 55. Kd2 {[%clk 0:00:37]}  Kd6 {[%clk 0:00:28]} 56. Bc4 {[%clk 0:00:35]}  Nc5 {[%clk 0:00:28]} 57. f3 {[%clk 0:00:32]}  Ke7 {[%clk 0:00:26]} 58. Bb3 {[%clk 0:00:28]}  Kf6 {[%clk 0:00:26]} 59. Ke3 {[%clk 0:00:27]}  Kf5 {[%clk 0:00:26]} 60. Bc2+ {[%clk 0:00:27]}  Kg5 {[%clk 0:00:26]} 61. a3 {[%clk 0:00:25]}  Kf6 {[%clk 0:00:26]} 62. f4 {[%clk 0:00:17]}  exf4+ {[%clk 0:00:25]} 63. Kxf4 {[%clk 0:00:18]}  Ne6+ {[%clk 0:00:22]} 64. Ke4 {[%clk 0:00:18]}  Kg5 {[%clk 0:00:20]} 65. Bd1 {[%clk 0:00:17]}  Nc5+ {[%clk 0:00:20]} 66. Kd5 {[%clk 0:00:15]}  Nd3 {[%clk 0:00:19]} 67. Kc6 {[%clk 0:00:14]}  Nb2 {[%clk 0:00:19]} 68. Bb3 {[%clk 0:00:11]}  Nd3 {[%clk 0:00:17]} 69. Bc2 {[%clk 0:00:09]}  Nc5 {[%clk 0:00:17]} 70. Kc7 {[%clk 0:00:06]}  b5 {[%clk 0:00:17]} 71. Kc6 {[%clk 0:00:06]}  Ne6 {[%clk 0:00:15]} 72. Kxb5 {[%clk 0:00:05]}  Kg4 {[%clk 0:00:15]} 73. Ka6 {[%clk 0:00:05]}  Nc7+ {[%clk 0:00:14]} 74. Ka5 {[%clk 0:00:04]}  Kxg3 {[%clk 0:00:13]} 75. Kb4 {[%clk 0:00:03]}  Kf4 {[%clk 0:00:14]} 76. Kc5 {[%clk 0:00:03]}  Ke5 {[%clk 0:00:15]} 77. Bb3 {[%clk 0:00:03]}  Kf6 {[%clk 0:00:14]} 78. Kc4 {[%clk 0:00:04]}  Ke7 {[%clk 0:00:14]} 79. Kc5 {[%clk 0:00:04]}  Kd8 {[%clk 0:00:15]} 80. Ba4 {[%clk 0:00:05]}  Kc8 {[%clk 0:00:15]} 81. Kc6 {[%clk 0:00:05]}  Kb8 {[%clk 0:00:16]} 82. Bb5 {[%clk 0:00:05]}  Ne6 {[%clk 0:00:15]} 83. Bc4 {[%clk 0:00:05]}  Nd8+ {[%clk 0:00:16]} 84. Kd6 {[%clk 0:00:05]}  Nb7+ {[%clk 0:00:17]} 85. Kc6 {[%clk 0:00:04]}  Na5+ {[%clk 0:00:17]} 86. Kb5 {[%clk 0:00:04]}  Nb7 {[%clk 0:00:16]} 87. Bd5 {[%clk 0:00:05]}  Nd6+ {[%clk 0:00:16]} 88. Kc5 {[%clk 0:00:05]}  Nc8 {[%clk 0:00:17]} 89. a4 {[%clk 0:00:05]}  Kc7 {[%clk 0:00:17]} 90. a5 {[%clk 0:00:04]}  Nd6 {[%clk 0:00:17]} 91. c4 {[%clk 0:00:04]}  Nf5 {[%clk 0:00:17]} 92. Kb4 {[%clk 0:00:04]}  Nd6 {[%clk 0:00:17]} 93. Kc5 {[%clk 0:00:04]}  Nf5 {[%clk 0:00:16]} 94. Be4 {[%clk 0:00:04]}  Nd6 {[%clk 0:00:16]} 95. Bd3 {[%clk 0:00:04]}  Nf7 {[%clk 0:00:16]} 96. Kb5 {[%clk 0:00:04]}  Ne5 {[%clk 0:00:16]} 97. Be4 {[%clk 0:00:04]}  Nd7 {[%clk 0:00:16]} 98. c5 {[%clk 0:00:04]}  Ne5 {[%clk 0:00:17]} 99. Bd5 {[%clk 0:00:04]}  Nd7 {[%clk 0:00:17]} 100. Bc4 {[%clk 0:00:04]}  Nb8 {[%clk 0:00:18]} 101. Be6 {[%clk 0:00:03]}  Nc6 {[%clk 0:00:17]} 102. Bd5 {[%clk 0:00:04]}  Nb8 {[%clk 0:00:18]} 103. a6 {[%clk 0:00:03]}  Nd7 {[%clk 0:00:18]} 104. Bc6 {[%clk 0:00:03]}  Ne5 {[%clk 0:00:18]} 105. Bb7 {[%clk 0:00:04]}  Nd7 {[%clk 0:00:18]} 106. Bd5 {[%clk 0:00:05]}  Nb8 {[%clk 0:00:18]} 107. Be6 {[%clk 0:00:04]}  Nc6 {[%clk 0:00:18]} 108. Bd5 {[%clk 0:00:04]}  Nd4+ {[%clk 0:00:18]} 109. Kc4 {[%clk 0:00:05]}  Nf5 {[%clk 0:00:19]} 110. Bb7 {[%clk 0:00:05]}  Ne7 {[%clk 0:00:19]} 111. Kd4 {[%clk 0:00:05]}  Nf5+ {[%clk 0:00:19]} 112. Ke5 {[%clk 0:00:05]}  Ne7 {[%clk 0:00:19]} 113. Ke6 {[%clk 0:00:05]}  Ng6 {[%clk 0:00:19]} 114. Kf5 {[%clk 0:00:05]}  Ne7+ {[%clk 0:00:20]} 115. Kf6 {[%clk 0:00:05]}  Ng8+ {[%clk 0:00:19]} 116. Ke6 {[%clk 0:00:05]}  Nh6 {[%clk 0:00:19]} 117. Bf3 {[%clk 0:00:05]}  Ng8 {[%clk 0:00:19]} 118. Kf7 {[%clk 0:00:05]}  Nh6+ {[%clk 0:00:20]} 119. Kf6 {[%clk 0:00:04]}  Ng8+ {[%clk 0:00:20]} 120. Ke6 {[%clk 0:00:05]}  Nh6 {[%clk 0:00:20]} 121. c6 {[%clk 0:00:05]}  Ng8 {[%clk 0:00:20]} 122. Kf7 {[%clk 0:00:04]}  Nh6+ {[%clk 0:00:20]} 123. Kf6 {[%clk 0:00:04]}  Ng8+ {[%clk 0:00:21]} 124. Kf7 {[%clk 0:00:04]}  Nh6+ {[%clk 0:00:21]} 125. Kg6 {[%clk 0:00:04]}  Ng8 {[%clk 0:00:22]} 126. Kf7 {[%clk 0:00:04]} 1/2-1/2


[Site "https://www.chess.com"]

[Event "Titled Tuesday Blitz May 03 Early 2022"]
[White "Lazavik, Denis"]
[Black "Bacrot, Etienne"]
[WhiteFideId "13515110"]
[BlackFideId "605506"]
[WhiteElo "2437"]
[BlackElo "2673"]
[Result "1-0"]
[Round "04"]
[TimeControl "180+1"]
[Date "2022.05.03"]
[WhiteClock "0:00:10"]
[BlackClock "0:00:08"]

1. d4 {[%clk 0:03:00]}  d5 {[%clk 0:02:57]} 2. c4 {[%clk 0:03:00]}  e6 {[%clk 0:02:57]} 3. Nf3 {[%clk 0:03:00]}  Nf6 {[%clk 0:02:57]} 4. g3 {[%clk 0:03:01]}  Be7 {[%clk 0:02:57]} 5. Bg2 {[%clk 0:03:01]}  O-O {[%clk 0:02:58]} 6. O-O {[%clk 0:03:02]}  c6 {[%clk 0:02:58]} 7. b3 {[%clk 0:03:01]}  b6 {[%clk 0:02:58]} 8. Qc2 {[%clk 0:03:00]}  Bb7 {[%clk 0:02:58]} 9. Rd1 {[%clk 0:03:00]}  Nbd7 {[%clk 0:02:58]} 10. Nc3 {[%clk 0:03:00]}  c5 {[%clk 0:02:58]} 11. cxd5 {[%clk 0:02:50]}  Nxd5 {[%clk 0:02:55]} 12. Nxd5 {[%clk 0:02:48]}  Bxd5 {[%clk 0:02:31]} 13. e4 {[%clk 0:02:39]}  Bb7 {[%clk 0:02:31]} 14. Bb2 {[%clk 0:02:16]}  cxd4 {[%clk 0:02:26]} 15. Nxd4 {[%clk 0:02:15]}  Rc8 {[%clk 0:02:05]} 16. Qe2 {[%clk 0:02:13]}  Qe8 {[%clk 0:01:45]} 17. Nb5 {[%clk 0:01:51]}  Ba6 {[%clk 0:00:14]} 18. Qg4 {[%clk 0:01:46]}  e5 {[%clk 0:00:06]} 19. Rxd7 {[%clk 0:01:05]}  Bxb5 {[%clk 0:00:06]} 20. Bxe5 {[%clk 0:01:04]}  f6 {[%clk 0:00:06]} 21. Qe6+ {[%clk 0:01:03]}  Rf7 {[%clk 0:00:05]} 22. Rxe7 {[%clk 0:01:03]}  Qxe7 {[%clk 0:00:04]} 23. Qxc8+ {[%clk 0:01:03]}  Rf8 {[%clk 0:00:05]} 24. Qc7 {[%clk 0:00:35]}  Qxe5 {[%clk 0:00:05]} 25. Qxe5 {[%clk 0:00:35]}  fxe5 {[%clk 0:00:05]} 26. Rc1 {[%clk 0:00:31]}  Rd8 {[%clk 0:00:06]} 27. Bh3 {[%clk 0:00:21]}  Kf7 {[%clk 0:00:04]} 28. Kg2 {[%clk 0:00:19]}  Kf6 {[%clk 0:00:04]} 29. Bg4 {[%clk 0:00:16]}  a5 {[%clk 0:00:04]} 30. Rc7 {[%clk 0:00:16]}  Rd2 {[%clk 0:00:04]} 31. Rb7 {[%clk 0:00:14]}  Rd6 {[%clk 0:00:04]} 32. Bf3 {[%clk 0:00:14]}  Be8 {[%clk 0:00:03]} 33. h4 {[%clk 0:00:13]}  h6 {[%clk 0:00:04]} 34. Rc7 {[%clk 0:00:12]}  Bc6 {[%clk 0:00:04]} 35. Rc8 {[%clk 0:00:12]}  g5 {[%clk 0:00:04]} 36. hxg5+ {[%clk 0:00:12]}  hxg5 {[%clk 0:00:05]} 37. Rf8+ {[%clk 0:00:12]}  Kg6 {[%clk 0:00:05]} 38. Rf5 {[%clk 0:00:11]}  g4 {[%clk 0:00:05]} 39. Rxe5 {[%clk 0:00:10]}  gxf3+ {[%clk 0:00:05]} 40. Kxf3 {[%clk 0:00:11]}  Rf6+ {[%clk 0:00:05]} 41. Ke3 {[%clk 0:00:11]}  Kf7 {[%clk 0:00:05]} 42. f3 {[%clk 0:00:12]}  Rd6 {[%clk 0:00:05]} 43. Rh5 {[%clk 0:00:11]}  Bd7 {[%clk 0:00:05]} 44. Rh7+ {[%clk 0:00:10]}  Kg6 {[%clk 0:00:05]} 45. Rh8 {[%clk 0:00:10]}  Rd1 {[%clk 0:00:05]} 46. Rd8 {[%clk 0:00:09]}  Kf7 {[%clk 0:00:05]} 47. g4 {[%clk 0:00:10]}  b5 {[%clk 0:00:06]} 48. Ra8 {[%clk 0:00:10]}  a4 {[%clk 0:00:05]} 49. bxa4 {[%clk 0:00:10]}  bxa4 {[%clk 0:00:06]} 50. Ra7 {[%clk 0:00:11]}  Ke7 {[%clk 0:00:07]} 51. f4 {[%clk 0:00:11]}  Ra1 {[%clk 0:00:07]} 52. f5 {[%clk 0:00:11]}  Rxa2 {[%clk 0:00:08]} 53. e5 {[%clk 0:00:11]}  Ra1 {[%clk 0:00:07]} 54. e6 {[%clk 0:00:11]}  Re1+ {[%clk 0:00:07]} 55. Kf4 {[%clk 0:00:12]}  Rxe6 {[%clk 0:00:07]} 56. fxe6 {[%clk 0:00:10]}  Kxe6 {[%clk 0:00:08]} 57. g5 {[%clk 0:00:11]}  Kd6 {[%clk 0:00:07]} 58. g6 {[%clk 0:00:10]}  Kc5 {[%clk 0:00:08]} 59. Rxd7 {[%clk 0:00:10]} 1-0


[Site "https://www.chess.com"]

[Event "Titled Tuesday Blitz May 03 Early 2022"]
[White "Legenia, Artem"]
[Black "Manukyan, Sargis A."]
[WhiteFideId "14136945"]
[BlackFideId "13303970"]
[WhiteElo "1936"]
[BlackElo "2187"]
[Result "0-1"]
[Round "04"]
[TimeControl "180+1"]
[Date "2022.05.03"]
[WhiteClock "0:00:05"]
[BlackClock "0:02:15"]

1. d4 {[%clk 0:02:59]}  d5 {[%clk 0:02:59]} 2. Nf3 {[%clk 0:02:58]}  Nf6 {[%clk 0:02:58]} 3. Bf4 {[%clk 0:02:58]}  Bf5 {[%clk 0:02:55]} 4. e3 {[%clk 0:02:58]}  Qc8 {[%clk 0:02:54]} 5. h3 {[%clk 0:02:58]}  c6 {[%clk 0:02:54]} 6. Bd3 {[%clk 0:02:57]}  h6 {[%clk 0:02:54]} 7. c3 {[%clk 0:02:57]}  Ne4 {[%clk 0:02:52]} 8. O-O {[%clk 0:02:56]}  e6 {[%clk 0:02:49]} 9. Qc2 {[%clk 0:02:47]}  Nd7 {[%clk 0:02:48]} 10. Nbd2 {[%clk 0:02:47]}  Ndf6 {[%clk 0:02:47]} 11. Ne5 {[%clk 0:02:47]}  Nxd2 {[%clk 0:02:46]} 12. Qxd2 {[%clk 0:02:47]}  Ne4 {[%clk 0:02:42]} 13. Qc2 {[%clk 0:02:47]}  Be7 {[%clk 0:02:41]} 14. f3 {[%clk 0:02:36]}  Nd6 {[%clk 0:02:41]} 15. e4 {[%clk 0:02:34]}  Bh7 {[%clk 0:02:37]} 16. exd5 {[%clk 0:02:33]}  Bxd3 {[%clk 0:02:38]} 17. Qxd3 {[%clk 0:02:32]}  cxd5 {[%clk 0:02:37]} 18. Rac1 {[%clk 0:02:23]}  O-O {[%clk 0:02:37]} 19. Rfe1 {[%clk 0:02:04]}  b5 {[%clk 0:02:36]} 20. b3 {[%clk 0:01:33]}  Qb7 {[%clk 0:02:26]} 21. c4 {[%clk 0:01:29]}  bxc4 {[%clk 0:02:27]} 22. bxc4 {[%clk 0:01:29]}  Nxc4 {[%clk 0:02:27]} 23. Nxc4 {[%clk 0:01:29]}  dxc4 {[%clk 0:02:28]} 24. Rxc4 {[%clk 0:01:24]}  Rfc8 {[%clk 0:02:29]} 25. Rec1 {[%clk 0:01:23]}  Rxc4 {[%clk 0:02:25]} 26. Qxc4 {[%clk 0:01:23]}  Bf6 {[%clk 0:02:23]} 27. Be5 {[%clk 0:01:21]}  Bxe5 {[%clk 0:02:17]} 28. dxe5 {[%clk 0:01:21]}  Qb6+ {[%clk 0:02:18]} 29. Qc5 {[%clk 0:01:19]}  Rc8 {[%clk 0:02:16]} 30. Qxb6 {[%clk 0:00:05]}  Rxc1+ {[%clk 0:02:15]} 0-1


[Site "https://www.chess.com"]

[Event "Titled Tuesday Blitz May 03 Early 2022"]
[White "Levitskiy, Andrey"]
[Black "Schmakel, Sam"]
[WhiteFideId "14132885"]
[BlackFideId "2039311"]
[WhiteElo "2301"]
[BlackElo "2356"]
[Result "1-0"]
[Round "04"]
[TimeControl "180+1"]
[Date "2022.05.03"]
[WhiteClock "0:00:05"]
[BlackClock "0:00:29"]

1. e4 {[%clk 0:02:09]}  e5 {[%clk 0:02:58]} 2. Nf3 {[%clk 0:02:10]}  Nc6 {[%clk 0:02:59]} 3. Bc4 {[%clk 0:02:10]}  Bc5 {[%clk 0:02:58]} 4. c3 {[%clk 0:02:10]}  Nf6 {[%clk 0:02:59]} 5. d4 {[%clk 0:02:08]}  exd4 {[%clk 0:02:59]} 6. e5 {[%clk 0:02:03]}  d5 {[%clk 0:02:59]} 7. Bb5 {[%clk 0:02:02]}  Ne4 {[%clk 0:02:59]} 8. cxd4 {[%clk 0:02:03]}  Bb6 {[%clk 0:02:59]} 9. Nc3 {[%clk 0:02:01]}  O-O {[%clk 0:02:57]} 10. Be3 {[%clk 0:02:02]}  Bg4 {[%clk 0:02:57]} 11. h3 {[%clk 0:02:00]}  Bh5 {[%clk 0:02:56]} 12. Qc2 {[%clk 0:02:00]}  Bg6 {[%clk 0:02:51]} 13. Qb3 {[%clk 0:02:00]}  Nxc3 {[%clk 0:02:36]} 14. Bxc6 {[%clk 0:01:45]}  bxc6 {[%clk 0:02:22]} 15. Qxc3 {[%clk 0:01:39]}  Be4 {[%clk 0:02:19]} 16. Ng5 {[%clk 0:01:01]}  Bxg2 {[%clk 0:01:32]} 17. Rg1 {[%clk 0:01:00]}  Be4 {[%clk 0:01:33]} 18. Nxe4 {[%clk 0:00:53]}  dxe4 {[%clk 0:01:33]} 19. Qxc6 {[%clk 0:00:48]}  Qh4 {[%clk 0:01:09]} 20. Bh6 {[%clk 0:00:18]}  g6 {[%clk 0:01:04]} 21. Bxf8 {[%clk 0:00:13]}  Rxf8 {[%clk 0:01:02]} 22. O-O-O {[%clk 0:00:14]}  Rd8 {[%clk 0:00:57]} 23. Rge1 {[%clk 0:00:10]}  Qxf2 {[%clk 0:00:38]} 24. Qf6 {[%clk 0:00:05]}  Qxf6 {[%clk 0:00:32]} 25. exf6 {[%clk 0:00:06]}  Bxd4 {[%clk 0:00:32]} 26. Rxe4 {[%clk 0:00:05]}  Bxb2+ {[%clk 0:00:29]} 27. Kxb2 {[%clk 0:00:05]} 1-0


[Site "https://www.chess.com"]

[Event "Titled Tuesday Blitz May 03 Early 2022"]
[White "Lorparizangeneh, Shahin"]
[Black "Ciorgovean, Iustin"]
[WhiteFideId "12521604"]
[BlackFideId "1242911"]
[WhiteElo "2525"]
[BlackElo "2075"]
[Result "1-0"]
[Round "04"]
[TimeControl "180+1"]
[Date "2022.05.03"]
[WhiteClock "0:00:09"]
[BlackClock "0:00:18"]

1. e4 {[%clk 0:03:00]}  e5 {[%clk 0:02:56]} 2. Nf3 {[%clk 0:03:00]}  Nc6 {[%clk 0:02:57]} 3. Bb5 {[%clk 0:03:00]}  Nf6 {[%clk 0:02:57]} 4. d3 {[%clk 0:02:59]}  Bc5 {[%clk 0:02:56]} 5. Bxc6 {[%clk 0:02:59]}  dxc6 {[%clk 0:02:56]} 6. Qe2 {[%clk 0:02:58]}  Qe7 {[%clk 0:02:52]} 7. Be3 {[%clk 0:02:50]}  O-O {[%clk 0:02:50]} 8. Bxc5 {[%clk 0:02:49]}  Qxc5 {[%clk 0:02:50]} 9. h3 {[%clk 0:02:48]}  Re8 {[%clk 0:02:49]} 10. c3 {[%clk 0:02:42]}  Qe7 {[%clk 0:02:38]} 11. Nbd2 {[%clk 0:02:39]}  c5 {[%clk 0:02:33]} 12. Nc4 {[%clk 0:02:38]}  Nd7 {[%clk 0:02:31]} 13. O-O {[%clk 0:02:26]}  b6 {[%clk 0:02:29]} 14. a4 {[%clk 0:02:19]}  a5 {[%clk 0:02:28]} 15. Nh2 {[%clk 0:02:16]}  Ba6 {[%clk 0:02:26]} 16. Ng4 {[%clk 0:02:16]}  f6 {[%clk 0:02:22]} 17. Nge3 {[%clk 0:02:13]}  Nf8 {[%clk 0:02:15]} 18. f4 {[%clk 0:01:59]}  exf4 {[%clk 0:02:14]} 19. Rxf4 {[%clk 0:01:58]}  Ng6 {[%clk 0:02:10]} 20. Rf2 {[%clk 0:01:56]}  Ne5 {[%clk 0:02:05]} 21. Nf5 {[%clk 0:01:44]}  Qd7 {[%clk 0:01:58]} 22. Nxe5 {[%clk 0:01:42]}  Rxe5 {[%clk 0:01:58]} 23. Qg4 {[%clk 0:01:40]}  Kh8 {[%clk 0:01:47]} 24. d4 {[%clk 0:01:40]}  cxd4 {[%clk 0:01:45]} 25. cxd4 {[%clk 0:01:41]}  Ree8 {[%clk 0:01:40]} 26. Re1 {[%clk 0:01:32]}  Rad8 {[%clk 0:01:37]} 27. e5 {[%clk 0:01:28]}  g6 {[%clk 0:01:28]} 28. Nh6 {[%clk 0:00:31]}  Qxg4 {[%clk 0:01:24]} 29. Nxg4 {[%clk 0:00:25]}  f5 {[%clk 0:01:20]} 30. Nf6 {[%clk 0:00:24]}  Re7 {[%clk 0:01:17]} 31. d5 {[%clk 0:00:24]}  Kg7 {[%clk 0:01:05]} 32. g4 {[%clk 0:00:24]}  Bb7 {[%clk 0:00:59]} 33. gxf5 {[%clk 0:00:20]}  gxf5 {[%clk 0:00:59]} 34. Rg2+ {[%clk 0:00:19]}  Kh8 {[%clk 0:00:57]} 35. Rd1 {[%clk 0:00:16]}  Rxe5 {[%clk 0:00:56]} 36. Kh2 {[%clk 0:00:17]}  Bxd5 {[%clk 0:00:53]} 37. Rc2 {[%clk 0:00:10]}  c6 {[%clk 0:00:30]} 38. Nh5 {[%clk 0:00:10]}  Rde8 {[%clk 0:00:27]} 39. Nf4 {[%clk 0:00:10]}  Kg7 {[%clk 0:00:26]} 40. Rg1+ {[%clk 0:00:09]}  Kf7 {[%clk 0:00:25]} 41. Nh5 {[%clk 0:00:09]}  Re2+ {[%clk 0:00:25]} 42. Rxe2 {[%clk 0:00:09]}  Rxe2+ {[%clk 0:00:26]} 43. Kg3 {[%clk 0:00:10]}  Rxb2 {[%clk 0:00:24]} 44. Kf4 {[%clk 0:00:11]}  Rg2 {[%clk 0:00:22]} 45. Re1 {[%clk 0:00:08]}  Kg6 {[%clk 0:00:20]} 46. Ng3 {[%clk 0:00:08]}  Rf2+ {[%clk 0:00:20]} 47. Ke5 {[%clk 0:00:08]}  f4 {[%clk 0:00:20]} 48. Ne2 {[%clk 0:00:09]}  f3 {[%clk 0:00:19]} 49. Nf4+ {[%clk 0:00:10]}  Kg5 {[%clk 0:00:19]} 50. Rg1+ {[%clk 0:00:09]}  Kh4 {[%clk 0:00:18]} 51. Rg4# {[%clk 0:00:09]} 1-0


[Site "https://www.chess.com"]

[Event "Titled Tuesday Blitz May 03 Early 2022"]
[White "Martin Carmona, Gaston Manuel"]
[Black "Bocharov, Dmitry"]
[WhiteFideId "22284567"]
[BlackFideId "4138716"]
[WhiteElo "2146"]
[BlackElo "2541"]
[Result "0-1"]
[Round "04"]
[TimeControl "180+1"]
[Date "2022.05.03"]
[WhiteClock "0:00:47"]
[BlackClock "0:01:28"]

1. d4 {[%clk 0:03:00]}  Nf6 {[%clk 0:02:59]} 2. c4 {[%clk 0:03:01]}  e6 {[%clk 0:02:56]} 3. Nc3 {[%clk 0:03:02]}  Bb4 {[%clk 0:02:55]} 4. Qc2 {[%clk 0:03:02]}  c5 {[%clk 0:02:55]} 5. dxc5 {[%clk 0:02:58]}  Qc7 {[%clk 0:02:54]} 6. g3 {[%clk 0:02:56]}  a6 {[%clk 0:02:42]} 7. a3 {[%clk 0:02:55]}  Bxc5 {[%clk 0:02:39]} 8. Bg2 {[%clk 0:02:54]}  Be7 {[%clk 0:02:39]} 9. b3 {[%clk 0:02:41]}  d6 {[%clk 0:02:31]} 10. Nf3 {[%clk 0:02:40]}  Nbd7 {[%clk 0:02:30]} 11. O-O {[%clk 0:02:41]}  b6 {[%clk 0:02:18]} 12. Bb2 {[%clk 0:01:59]}  Bb7 {[%clk 0:02:11]} 13. Rfd1 {[%clk 0:01:59]}  Rc8 {[%clk 0:02:07]} 14. Rac1 {[%clk 0:01:59]}  O-O {[%clk 0:02:05]} 15. Nh4 {[%clk 0:01:50]}  Bxg2 {[%clk 0:01:53]} 16. Nxg2 {[%clk 0:01:50]}  Qb7 {[%clk 0:01:51]} 17. Ne3 {[%clk 0:01:50]}  b5 {[%clk 0:01:51]} 18. cxb5 {[%clk 0:01:48]}  axb5 {[%clk 0:01:52]} 19. Qd2 {[%clk 0:01:39]}  Nc5 {[%clk 0:01:46]} 20. Qc2 {[%clk 0:01:26]}  d5 {[%clk 0:01:37]} 21. f3 {[%clk 0:01:16]}  b4 {[%clk 0:01:33]} 22. axb4 {[%clk 0:01:16]}  Qxb4 {[%clk 0:01:34]} 23. Na4 {[%clk 0:00:47]}  Nxa4 {[%clk 0:01:28]} 24. Qxc8 {[%clk 0:00:47]}  Nxb2 {[%clk 0:01:28]} 0-1


[Site "https://www.chess.com"]

[Event "Titled Tuesday Blitz May 03 Early 2022"]
[White "Matveeva, Olga"]
[Black "Ohanyan, Emin"]
[WhiteFideId "24107018"]
[BlackFideId "13312022"]
[WhiteElo "2083"]
[BlackElo "1927"]
[Result "0-1"]
[Round "04"]
[TimeControl "180+1"]
[Date "2022.05.03"]
[WhiteClock "0:00:14"]
[BlackClock "0:00:24"]

1. d4 {[%clk 0:03:00]}  d5 {[%clk 0:02:57]} 2. c4 {[%clk 0:03:00]}  c6 {[%clk 0:02:56]} 3. Nf3 {[%clk 0:03:00]}  Nf6 {[%clk 0:02:55]} 4. Qb3 {[%clk 0:02:59]}  e6 {[%clk 0:02:44]} 5. g3 {[%clk 0:02:56]}  a5 {[%clk 0:02:39]} 6. a4 {[%clk 0:02:47]}  Bb4+ {[%clk 0:02:27]} 7. Bd2 {[%clk 0:02:44]}  Na6 {[%clk 0:02:27]} 8. Bg2 {[%clk 0:02:42]}  O-O {[%clk 0:02:19]} 9. O-O {[%clk 0:02:41]}  Ne4 {[%clk 0:02:15]} 10. Nc3 {[%clk 0:02:32]}  Nxd2 {[%clk 0:02:12]} 11. Nxd2 {[%clk 0:02:31]}  dxc4 {[%clk 0:01:56]} 12. Qxc4 {[%clk 0:02:32]}  e5 {[%clk 0:01:56]} 13. Nf3 {[%clk 0:02:12]}  Be6 {[%clk 0:01:26]} 14. Qd3 {[%clk 0:02:09]}  exd4 {[%clk 0:01:26]} 15. Nxd4 {[%clk 0:02:06]}  Nc5 {[%clk 0:01:26]} 16. Qe3 {[%clk 0:02:02]}  Qf6 {[%clk 0:01:02]} 17. Nxe6 {[%clk 0:02:00]}  Nxe6 {[%clk 0:00:57]} 18. Rad1 {[%clk 0:01:54]}  Rad8 {[%clk 0:00:50]} 19. h4 {[%clk 0:01:36]}  Nc5 {[%clk 0:00:48]} 20. h5 {[%clk 0:01:13]}  Bxc3 {[%clk 0:00:38]} 21. bxc3 {[%clk 0:01:02]}  Nxa4 {[%clk 0:00:38]} 22. c4 {[%clk 0:00:40]}  Nb2 {[%clk 0:00:35]} 23. Rxd8 {[%clk 0:00:39]}  Rxd8 {[%clk 0:00:36]} 24. c5 {[%clk 0:00:33]}  Nc4 {[%clk 0:00:32]} 25. Qb3 {[%clk 0:00:30]}  Nd2 {[%clk 0:00:32]} 26. Qxb7 {[%clk 0:00:27]}  Nxf1 {[%clk 0:00:32]} 27. Bxf1 {[%clk 0:00:28]}  h6 {[%clk 0:00:29]} 28. Qa6 {[%clk 0:00:25]}  Rd5 {[%clk 0:00:25]} 29. Qxa5 {[%clk 0:00:25]}  Rxh5 {[%clk 0:00:23]} 30. Bg2 {[%clk 0:00:19]}  g6 {[%clk 0:00:23]} 31. Qa8+ {[%clk 0:00:18]}  Kg7 {[%clk 0:00:23]} 32. Qxc6 {[%clk 0:00:19]}  Qxc6 {[%clk 0:00:23]} 33. Bxc6 {[%clk 0:00:19]}  Rxc5 {[%clk 0:00:24]} 34. Bf3 {[%clk 0:00:18]}  h5 {[%clk 0:00:24]} 35. Kg2 {[%clk 0:00:19]}  Kh6 {[%clk 0:00:24]} 36. Kh2 {[%clk 0:00:19]}  g5 {[%clk 0:00:24]} 37. Kg2 {[%clk 0:00:19]}  f5 {[%clk 0:00:24]} 38. Kh2 {[%clk 0:00:18]}  Rc4 {[%clk 0:00:23]} 39. Kg2 {[%clk 0:00:17]}  Rb4 {[%clk 0:00:23]} 40. Bd5 {[%clk 0:00:17]}  Rd4 {[%clk 0:00:22]} 41. Bc6 {[%clk 0:00:16]}  Rd6 {[%clk 0:00:22]} 42. Bb7 {[%clk 0:00:16]}  Rb6 {[%clk 0:00:22]} 43. Ba8 {[%clk 0:00:16]}  Rb2 {[%clk 0:00:22]} 44. Bc6 {[%clk 0:00:16]}  Rxe2 {[%clk 0:00:21]} 45. Kf3 {[%clk 0:00:16]}  Rc2 {[%clk 0:00:21]} 46. Bd5 {[%clk 0:00:15]}  Rc3+ {[%clk 0:00:22]} 47. Kg2 {[%clk 0:00:15]}  g4 {[%clk 0:00:22]} 48. Be6 {[%clk 0:00:15]}  Kg5 {[%clk 0:00:23]} 49. Bd5 {[%clk 0:00:15]}  f4 {[%clk 0:00:22]} 50. gxf4+ {[%clk 0:00:13]}  Kxf4 {[%clk 0:00:23]} 51. Bf7 {[%clk 0:00:14]}  h4 {[%clk 0:00:24]} 0-1


[Site "https://www.chess.com"]